fUSD/lending_fUSD_20240907
["ID","MTS","AMOUNT","RATE_DAILY","PERIOD"]
[337506538,1725725440200,-1166.88,0.00014794,2]
[337506540,1725725440209,-500.0,0.00014794,2]
[337506542,1725725440218,-1166.88,0.00014794,2]
[337506544,1725725440228,-500.0,0.00014794,2]
[337506545,1725725440237,-500.0,0.00014794,2]
[337506547,1725725440247,-500.0,0.00014794,2]
[337506549,1725725440256,-500.0,0.00014794,2]
[337506551,1725725440266,-500.0,0.00014794,2]
[337506552,1725725440275,-500.0,0.00014794,2]
[337506553,1725725440284,-500.0,0.00014794,2]
[337506554,1725725440293,-500.0,0.00014794,2]
[337506555,1725725440302,-500.0,0.00014794,2]
[337506556,1725725440311,-500.0,0.00014794,2]
[337506557,1725725440320,-500.0,0.00014794,2]
[337506558,1725725440330,-500.0,0.00014794,2]
[337506559,1725725440339,-500.0,0.00014794,2]
[337506560,1725725440348,-500.0,0.00014794,2]
[337506561,1725725440357,-500.0,0.00014794,2]
[337506562,1725725440366,-500.0,0.00014794,2]
[337506563,1725725440375,-500.0,0.00014794,2]
[337506564,1725725440384,-598.4,0.00014794,2]
[337506565,1725725440393,-268.04,0.00014794,2]
[337506566,1725725440403,-2435.23,0.00014794,2]
[337506567,1725725440412,-2435.23,0.00014794,2]
[337506568,1725725440421,-2435.23,0.00014794,2]
[337506569,1725725440431,-2435.23,0.00014794,2]
[337506570,1725725440440,-500.0,0.00014794,2]
[337506571,1725725440452,-500.0,0.00014794,2]
[337506572,1725725440461,-500.0,0.00014794,2]
[337506573,1725725440470,-500.0,0.00014794,2]
[337506574,1725725440479,-500.0,0.00014794,2]
[337506575,1725725440489,-651.29,0.00014794,2]
[337506576,1725725440499,-651.29,0.00014794,2]
[337506577,1725725440508,-500.0,0.00014794,2]
[337506578,1725725440517,-651.29,0.00014794,2]
[337506579,1725725440527,-500.0,0.00014794,2]
[337506580,1725725440536,-651.29,0.00014794,2]
[337506581,1725725440545,-500.0,0.00014794,2]
[337506582,1725725440555,-500.0,0.00014794,2]
[337506583,1725725440564,-500.0,0.00014794,2]
[337506584,1725725440574,-508.35046095,0.00014794,2]
[337506585,1725725440583,-500.0,0.00014794,2]
[337506586,1725725440592,-500.0,0.00014794,2]
[337506587,1725725440602,-500.0,0.00014794,2]
[337506588,1725725440611,-500.0,0.00014794,2]
[337506589,1725725440620,-500.0,0.00014794,2]
[337506590,1725725440629,-500.0,0.00014794,2]
[337506591,1725725440640,-500.0,0.00014794,2]
[337506592,1725725440649,-151.0,0.00014794,2]
[337506593,1725725440658,-151.0,0.00014794,2]
[337506594,1725725440667,-1611.11,0.00014794,2]
[337506595,1725725440676,-151.0,0.00014794,2]
[337506596,1725725440685,-1083.73,0.00014794,2]
[337506597,1725725440694,-151.0,0.00014794,2]
[337506598,1725725440704,-1083.73,0.00014794,2]
[337506599,1725725440714,-1611.11,0.00014794,2]
[337506600,1725725440725,-1083.73,0.00014794,2]
[337506601,1725725440736,-1611.11,0.00014794,2]
[337506602,1725725440745,-1611.11,0.00014794,2]
[337506603,1725725440761,-1083.73,0.00014794,2]
[337506604,1725725440769,-702.31,0.00014794,2]
[337506605,1725725440779,-702.31,0.00014794,2]
[337506606,1725725440788,-702.31,0.00014794,2]
[337506607,1725725440797,-702.31,0.00014794,2]
[337506608,1725725440807,-151.0,0.00014794,2]
[337506609,1725725440819,-151.0,0.00014794,2]
[337506610,1725725440828,-1562.147949,0.00014794,2]
[337506611,1725725440837,-1562.147949,0.00014794,2]
[337506612,1725725440846,-665.04,0.00014794,2]
[337506613,1725725440855,-665.04,0.00014794,2]
[337506614,1725725440864,-665.04,0.00014794,2]
[337506615,1725725440873,-665.04,0.00014794,2]
[337506616,1725725440883,-1562.147949,0.00014794,2]
[337506617,1725725440892,-1562.147949,0.00014794,2]
[337506618,1725725440901,-500.71092004,0.00014794,2]
[337506619,1725725440910,-500.0,0.00014794,2]
[337506620,1725725440919,-500.0,0.00014794,2]
[337506621,1725725440928,-500.0,0.00014794,2]
[337506622,1725725440937,-500.0,0.00014794,2]
[337506623,1725725440946,-602.44,0.00014794,2]
[337506624,1725725440955,-602.44,0.00014794,2]
[337506625,1725725440965,-602.44,0.00014794,2]
[337506626,1725725440973,-500.0,0.00014794,2]
[337506627,1725725440982,-602.44,0.00014794,2]
[337506628,1725725440991,-500.0,0.00014794,2]
[337506629,1725725441003,-4217.42,0.00014794,2]
[337506630,1725725441013,-4217.42,0.00014794,2]
[337506631,1725725441022,-4217.42,0.00014794,2]
[337506632,1725725441031,-4217.42,0.00014794,2]
[337506633,1725725441040,-500.0,0.00014794,2]
[337506634,1725725441048,-500.0,0.00014794,2]
[337506635,1725725441058,-500.0,0.00014794,2]
[337506636,1725725441067,-500.0,0.00014794,2]
[337506637,1725725441076,-500.0,0.00014794,2]
[337506638,1725725441085,-500.0,0.00014794,2]
[337506639,1725725441095,-500.0,0.00014794,2]
[337506640,1725725441104,-500.0,0.00014794,2]
[337506641,1725725441113,-395.61111916,0.00014794,2]
[337506642,1725725441124,-2562.45,0.00014794,2]
[337506643,1725725441250,-2562.45,0.00014794,2]
[337506644,1725725441260,-2562.45,0.00014794,2]
[337506645,1725725441269,-2562.45,0.00014794,2]
[337506646,1725725441279,-538.12,0.00014794,2]
[337506647,1725725441288,-538.12,0.00014794,2]
[337506648,1725725441297,-538.12,0.00014794,2]
[337506649,1725725441307,-538.12,0.00014794,2]
[337506650,1725725441316,-1352.15,0.00014794,2]
[337506651,1725725441326,-1352.15,0.00014794,2]
[337506652,1725725441335,-151.0,0.00014794,2]
[337506653,1725725441344,-1352.15,0.00014794,2]
[337506654,1725725441354,-1352.15,0.00014794,2]
[337506655,1725725441363,-151.0,0.00014794,2]
[337506656,1725725441373,-500.0,0.00014794,2]
[337506657,1725725441382,-500.0,0.00014794,2]
[337506658,1725725441392,-500.0,0.00014794,2]
[337506659,1725725441401,-1183.93,0.00014794,2]
[337506660,1725725441411,-500.0,0.00014794,2]
[337506661,1725725441421,-500.0,0.00014794,2]
[337506662,1725725441430,-1183.93,0.00014794,2]
[337506663,1725725441440,-635.13,0.00014794,2]
[337506664,1725725441449,-1183.93,0.00014794,2]
[337506665,1725725441459,-635.13,0.00014794,2]
[337506666,1725725441469,-2590.3,0.00014794,2]
[337506667,1725725441478,-2590.3,0.00014794,2]
[337506668,1725725441488,-635.13,0.00014794,2]
[337506669,1725725441497,-2590.3,0.00014794,2]
[337506670,1725725441506,-1183.93,0.00014794,2]
[337506671,1725725441516,-635.13,0.00014794,2]
[337506672,1725725441525,-2590.3,0.00014794,2]
[337506673,1725725441535,-1843.92,0.00014794,2]
[337506674,1725725441545,-1843.92,0.00014794,2]
[337506675,1725725441554,-1843.92,0.00014794,2]
[337506676,1725725441565,-1843.92,0.00014794,2]
[337506677,1725725441574,-500.0,0.00014794,2]
[337506678,1725725441583,-500.0,0.00014794,2]
[337506679,1725725441593,-500.0,0.00014794,2]
[337506680,1725725441602,-500.0,0.00014794,2]
[337506681,1725725441611,-500.0,0.00014794,2]
[337506682,1725725441621,-500.0,0.00014794,2]
[337506683,1725725441630,-500.0,0.00014794,2]
[337506684,1725725441640,-500.0,0.00014794,2]
[337506685,1725725441650,-500.0,0.00014794,2]
[337506686,1725725441659,-553.59,0.00014794,2]
[337506687,1725725441668,-1168.13,0.00014794,2]
[337506688,1725725441678,-500.0,0.00014794,2]
[337506689,1725725441687,-1168.13,0.00014794,2]
[337506690,1725725441696,-1168.13,0.00014794,2]
[337506691,1725725441705,-1168.13,0.00014794,2]
[337506692,1725725441714,-2459.72,0.00014794,2]
[337506693,1725725441723,-2459.72,0.00014794,2]
[337506694,1725725441733,-2459.72,0.00014794,2]
[337506695,1725725441743,-2459.72,0.00014794,2]
[337506696,1725725441754,-500.0,0.00014794,2]
[337506697,1725725441763,-500.0,0.00014794,2]
[337506698,1725725441773,-500.0,0.00014794,2]
[337506699,1725725441782,-500.0,0.00014794,2]
[337506700,1725725441791,-500.0,0.00014794,2]
[337506701,1725725441800,-184.21,0.00014794,2]
[337506702,1725725441810,-500.0,0.00014794,2]
[337506703,1725725441823,-509.95,0.00014794,2]
[337506704,1725725441832,-500.0,0.00014794,2]
[337506705,1725725441842,-151.0,0.00014794,2]
[337506706,1725725441851,-500.0,0.00014794,2]
[337506707,1725725441862,-500.0,0.00014794,2]
[337506708,1725725441871,-500.0,0.00014794,2]
[337506709,1725725441880,-500.0,0.00014794,2]
[337506710,1725725441890,-632.29,0.00014794,2]
[337506711,1725725441900,-8378.39,0.00014794,2]
[337506712,1725725441910,-8378.39,0.00014794,2]
[337506713,1725725441919,-8378.39,0.00014794,2]
[337506714,1725725441928,-8378.39,0.00014794,2]
[337506715,1725725441937,-2902.76,0.00014794,2]
[337506716,1725725441946,-2902.76,0.00014794,2]
[337506717,1725725441956,-500.0,0.00014794,2]
[337506718,1725725441965,-2902.76,0.00014794,2]
[337506719,1725725441974,-352.13,0.00014794,2]
[337506720,1725725441983,-2902.76,0.00014794,2]
[337506721,1725725441992,-157.179605,0.00014794,2]
[337506722,1725725442003,-500.0,0.00014794,2]
[337506723,1725725442013,-500.0,0.00014794,2]
[337506724,1725725442022,-157.179605,0.00014794,2]
[337506725,1725725442033,-931.16,0.00014794,2]
[337506726,1725725442042,-500.0,0.00014794,2]
[337506727,1725725442052,-157.179605,0.00014794,2]
[337506728,1725725442061,-931.16,0.00014794,2]
[337506729,1725725442071,-500.0,0.00014794,2]
[337506730,1725725442081,-154.36238,0.00014794,2]
[337506731,1725725442090,-931.16,0.00014794,2]
[337506732,1725725442100,-295.02,0.00014794,2]
[337506733,1725725442109,-931.16,0.00014794,2]
[337506734,1725725442119,-267.458192,0.00014794,2]
[337506735,1725725442128,-500.0,0.00014794,2]
[337506736,1725725442138,-267.458192,0.00014794,2]
[337506737,1725725442147,-500.0,0.00014794,2]
[337506738,1725725442156,-500.0,0.00014794,2]
[337506739,1725725442167,-267.458192,0.00014794,2]
[337506740,1725725442178,-500.0,0.00014794,2]
[337506741,1725725442188,-267.458192,0.00014794,2]
[337506742,1725725442199,-1494.43,0.00014794,2]
[337506743,1725725442209,-1494.43,0.00014794,2]
[337506744,1725725442220,-1494.43,0.00014794,2]
[337506745,1725725442230,-1494.43,0.00014794,2]
[337506746,1725725442241,-500.0,0.00014794,2]
[337506747,1725725442252,-500.0,0.00014794,2]
[337506748,1725725442262,-500.0,0.00014794,2]
[337506749,1725725442272,-500.0,0.00014794,2]
[337506750,1725725442282,-500.0,0.00014794,2]
[337506751,1725725442292,-1900.6,0.00014794,2]
[337506752,1725725442302,-1900.6,0.00014794,2]
[337506753,1725725442311,-1900.6,0.00014794,2]
[337506754,1725725442320,-1900.6,0.00014794,2]
[337506755,1725725442330,-500.0,0.00014794,2]
[337506756,1725725442339,-500.0,0.00014794,2]
[337506757,1725725442350,-500.0,0.00014794,2]
[337506758,1725725442359,-500.0,0.00014794,2]
[337506759,1725725442369,-1671.94,0.00014794,2]
[337506761,1725725442379,-1671.94,0.00014794,2]
[337506762,1725725442389,-1671.94,0.00014794,2]
[337506763,1725725442399,-1671.94,0.00014794,2]
[337506764,1725725442408,-1671.94,0.00014794,2]
[337506765,1725725442418,-564.82,0.00014794,2]
[337506766,1725725442427,-564.82,0.00014794,2]
[337506767,1725725442437,-564.82,0.00014794,2]
[337506768,1725725442447,-564.82,0.00014794,2]
[337506769,1725725442456,-3004.64,0.00014794,2]
[337506770,1725725442466,-3004.64,0.00014794,2]
[337506771,1725725442475,-3004.64,0.00014794,2]
[337506772,1725725442484,-3004.64,0.00014794,2]
[337506773,1725725442493,-500.0,0.00014794,2]
[337506774,1725725442504,-500.0,0.00014794,2]
[337506775,1725725442513,-500.0,0.00014794,2]
[337506776,1725725442523,-500.0,0.00014794,2]
[337506777,1725725442533,-541.66,0.00014794,2]
[337506779,1725725442542,-541.66,0.00014794,2]
[337506780,1725725442552,-541.66,0.00014794,2]
[337506781,1725725442564,-541.66,0.00014794,2]
[337506782,1725725442573,-500.0,0.00014794,2]
[337506783,1725725442583,-500.0,0.00014794,2]
[337506784,1725725442592,-500.0,0.00014794,2]
[337506785,1725725442602,-500.0,0.00014794,2]
[337506786,1725725442611,-500.0,0.00014794,2]
[337506787,1725725442621,-500.0,0.00014794,2]
[337506788,1725725442630,-500.0,0.00014794,2]
[337506789,1725725442641,-500.0,0.00014794,2]
[337506790,1725725442652,-500.0,0.00014794,2]
[337506791,1725725442661,-500.0,0.00014794,2]
[337506792,1725725442670,-500.0,0.00014794,2]
[337506793,1725725442680,-500.0,0.00014794,2]
[337506794,1725725442689,-500.0,0.00014794,2]
[337506795,1725725442699,-500.0,0.00014794,2]
[337506796,1725725442709,-500.0,0.00014794,2]
[337506797,1725725442719,-500.0,0.00014794,2]
[337506798,1725725442728,-500.0,0.00014794,2]
[337506799,1725725442738,-500.0,0.00014794,2]
[337506800,1725725442749,-550.26843595,0.00014794,2]
[337506801,1725725442758,-500.0,0.00014794,2]
[337506802,1725725442767,-500.0,0.00014794,2]
[337506803,1725725442777,-500.0,0.00014794,2]
[337506804,1725725442787,-500.0,0.00014794,2]
[337506805,1725725442797,-500.0,0.00014794,2]
[337506806,1725725442806,-500.0,0.00014794,2]
[337506807,1725725442817,-500.0,0.00014794,2]
[337506808,1725725442827,-500.0,0.00014794,2]
[337506809,1725725442836,-500.0,0.00014794,2]
[337506810,1725725442846,-541.00279632,0.00014794,2]
[337506811,1725725442855,-500.0,0.00014794,2]
[337506812,1725725442867,-500.0,0.00014794,2]
[337506813,1725725442877,-500.0,0.00014794,2]
[337506814,1725725442887,-500.0,0.00014794,2]
[337506815,1725725442898,-500.0,0.00014794,2]
[337506816,1725725442907,-1417.05,0.00014794,2]
[337506817,1725725442916,-1417.05,0.00014794,2]
[337506818,1725725442926,-1417.05,0.00014794,2]
[337506819,1725725442936,-516.83,0.00014794,2]
[337506820,1725725442945,-1417.05,0.00014794,2]
[337506821,1725725442954,-516.83,0.00014794,2]
[337506822,1725725442964,-500.0,0.00014794,2]
[337506823,1725725442973,-500.0,0.00014794,2]
[337506824,1725725442983,-535.77916661,0.00014794,2]
[337506825,1725725442993,-516.83,0.00014794,2]
[337506826,1725725443005,-500.0,0.00014794,2]
[337506827,1725725443014,-516.83,0.00014794,2]
[337506828,1725725443024,-500.0,0.00014794,2]
[337506829,1725725443033,-500.0,0.00014794,2]
[337506830,1725725443043,-500.0,0.00014794,2]
[337506831,1725725443052,-500.0,0.00014794,2]
[337506832,1725725443062,-574.44,0.00014794,2]
[337506833,1725725443071,-500.0,0.00014794,2]
[337506834,1725725443081,-500.0,0.00014794,2]
[337506835,1725725443090,-500.0,0.00014794,2]
[337506836,1725725443099,-500.0,0.00014794,2]
[337506837,1725725443109,-500.0,0.00014794,2]
[337506838,1725725443119,-151.0,0.00014794,2]
[337506840,1725725443128,-500.0,0.00014794,2]
[337506841,1725725443138,-151.0,0.00014794,2]
[337506842,1725725443147,-500.0,0.00014794,2]
[337506843,1725725443156,-500.0,0.00014794,2]
[337506844,1725725443166,-500.0,0.00014794,2]
[337506845,1725725443175,-500.0,0.00014794,2]
[337506846,1725725443184,-500.0,0.00014794,2]
[337506847,1725725443194,-500.0,0.00014794,2]
[337506848,1725725443204,-500.0,0.00014794,2]
[337506849,1725725443214,-500.0,0.00014794,2]
[337506850,1725725443223,-500.0,0.00014794,2]
[337506851,1725725443233,-500.0,0.00014794,2]
[337506852,1725725443242,-500.0,0.00014794,2]
[337506853,1725725443252,-151.0,0.00014794,2]
[337506854,1725725443262,-151.0,0.00014794,2]
[337506855,1725725443271,-527.0,0.00014831,2]
[337506856,1725725443281,-167.36,0.00014844,2]
[337506857,1725725443291,-663.85,0.00014878,2]
[337506858,1725725443300,-6333.75305297,0.0001488,2]
[337506859,1725725443310,-1410.777,0.00014887,2]
[337506860,1725725443320,-402.766,0.00014887,2]
[337506861,1725725443329,-333.75235192,0.000149,2]
[337506862,1725725443338,-2000.0,0.00014942,2]
[337506863,1725725443348,-200.0,0.00014942,2]
[337506864,1725725443358,-500.0,0.00014973,2]
[337506865,1725725443367,-1794.06,0.00014992,2]
[337506866,1725725443378,-1727.11,0.00014992,2]
[337506867,1725725443387,-500.0,0.00014992,2]
[337506868,1725725443396,-2435.23,0.00014992,2]
[337506869,1725725443406,-651.29,0.00014992,2]
[337506870,1725725443415,-1611.11,0.00014992,2]
[337506871,1725725443425,-702.31,0.00014992,2]
[337506872,1725725443435,-500.0,0.00014992,2]
[337506873,1725725443444,-4217.42,0.00014992,2]
[337506874,1725725443454,-2562.45,0.00014992,2]
[337506875,1725725443465,-1352.15,0.00014992,2]
[337506876,1725725443474,-2590.3,0.00014992,2]
[337506877,1725725443485,-1843.92,0.00014992,2]
[337506878,1725725443495,-1168.13,0.00014992,2]
[337506879,1725725443610,-2459.72,0.00014992,2]
[337506880,1725725443620,-8378.39,0.00014992,2]
[337506881,1725725443629,-2902.76,0.00014992,2]
[337506882,1725725443639,-1494.43,0.00014992,2]
[337506883,1725725443648,-1900.6,0.00014992,2]
[337506884,1725725443657,-564.82,0.00014992,2]
[337506885,1725725443667,-3004.64,0.00014992,2]
[337506886,1725725443676,-541.66,0.00014992,2]
[337506887,1725725443685,-500.0,0.00014992,2]
[337506888,1725725443695,-500.0,0.00014992,2]
[337506889,1725725443704,-1417.05,0.00014992,2]
[337506890,1725725443714,-516.83,0.00014992,2]
[337506891,1725725443725,-1514.3246014,0.00014993,2]
[337506892,1725725443736,-4888.8748834,0.00014993,2]
[337506893,1725725443746,-13253.9635437,0.00014993,2]
[337506894,1725725443756,-500.0,0.00014996,2]
[337506895,1725725443766,-500.0,0.00014996,2]
[337506896,1725725443776,-500.0,0.00014996,2]
[337506897,1725725443786,-500.0,0.00014996,2]
[337506898,1725725443796,-500.0,0.00014996,2]
[337506899,1725725443806,-500.0,0.00014997,2]
[337506900,1725725443819,-500.0,0.00014997,2]
[337506901,1725725443830,-500.0,0.00014997,2]
[337506902,1725725443841,-460.14632444,0.00014997,2]
[337506903,1725725443852,-500.0,0.00014997,2]
[337506904,1725725443863,-500.0,0.00014997,2]
[337506905,1725725443874,-564.9,0.00014997,2]
[337506906,1725725443886,-500.0,0.00014997,2]
[337506907,1725725443896,-500.0,0.00014997,2]
[337506908,1725725443908,-500.0,0.00014997,2]
[337506909,1725725443918,-500.0,0.00014997,2]
[337506910,1725725443927,-372.47,0.00014997,2]
[337506911,1725725443936,-500.0,0.00014997,2]
[337506912,1725725443947,-500.0,0.00014997,2]
[337506913,1725725443957,-500.0,0.00014997,2]
[337506914,1725725443967,-500.0,0.00014997,2]
[337506915,1725725443977,-151.0,0.00014997,2]
[337506916,1725725443986,-355.36,0.00014997,2]
[337506917,1725725443996,-252.4,0.00014997,2]
[337506918,1725725444017,-500.0,0.00014997,2]
[337506919,1725725444027,-245.329471,0.00014997,2]
[337506920,1725725444038,-152.208262,0.00014997,2]
[337506921,1725725444047,-500.0,0.00014997,2]
[337506922,1725725444057,-151.0,0.00014997,2]
[337506923,1725725444066,-559.26,0.00014997,2]
[337506924,1725725444076,-500.0,0.00014997,2]
[337506925,1725725444085,-500.0,0.00014997,2]
[337506926,1725725444095,-469.17,0.00014997,2]
[337506927,1725725444104,-500.0,0.00014997,2]
[337506928,1725725444114,-500.0,0.00014997,2]
[337506929,1725725444123,-500.0,0.00014997,2]
[337506930,1725725444132,-500.0,0.00014997,2]
[337506931,1725725444141,-151.0,0.00014997,2]
[337506932,1725725444150,-512.44843333,0.00014997,2]
[337506933,1725725444159,-3557.25,0.00014997,2]
[337506934,1725725444169,-500.0,0.00014997,2]
[337506935,1725725444179,-500.0,0.00014997,2]
[337506936,1725725444188,-500.0,0.00014997,2]
[337506937,1725725444197,-13772.86,0.00014997,2]
[337506938,1725725444207,-708.83,0.00014997,2]
[337506939,1725725444216,-339.275189,0.00014997,2]
[337506940,1725725444225,-996.971095,0.00014997,2]
[337506941,1725725444234,-894.44,0.00014997,2]
[337506942,1725725444243,-950.69,0.00014997,2]
[337506943,1725725444252,-1031.26,0.00014997,2]
[337506944,1725725444261,-500.0,0.00014997,2]
[337506945,1725725444270,-500.0,0.00014997,2]
[337506946,1725725444280,-581.3,0.00014997,2]
[337506947,1725725444289,-576.54,0.00014997,2]
[337506948,1725725444298,-500.0,0.00014997,2]
[337506949,1725725444307,-500.0,0.00014997,2]
[337506950,1725725444316,-151.0,0.00014997,2]
[337506951,1725725444325,-500.0,0.00014997,2]
[337506952,1725725444334,-500.0,0.00014997,2]
[337506953,1725725444344,-500.0,0.00014997,2]
[337506954,1725725444353,-1350.03,0.00014997,2]
[337506955,1725725444362,-500.0,0.00014997,2]
[337506956,1725725444372,-740.71,0.00014997,2]
[337506957,1725725444381,-665.14,0.00014997,2]
[337506958,1725725444391,-500.0,0.00014997,2]
[337506959,1725725444400,-718.86,0.00014997,2]
[337506960,1725725444410,-1106.57,0.00014997,2]
[337506961,1725725444419,-500.0,0.00014997,2]
[337506962,1725725444428,-587.87,0.00014997,2]
[337506963,1725725444438,-500.0,0.00014997,2]
[337506964,1725725444447,-3045.1,0.00014997,2]
[337506965,1725725444456,-500.0,0.00014997,2]
[337506966,1725725444465,-1794.06,0.00014997,2]
[337506967,1725725444475,-500.0,0.00014997,2]
[337506968,1725725444484,-500.0,0.00014997,2]
[337506969,1725725444493,-6048.86,0.00014997,2]
[337506970,1725725444507,-1727.11,0.00014997,2]
[337506971,1725725444516,-521.51,0.00014997,2]
[337506972,1725725444526,-500.0,0.00014997,2]
[337506973,1725725444535,-500.0,0.00014997,2]
[337506974,1725725444545,-1166.88,0.00014997,2]
[337506975,1725725444554,-500.0,0.00014997,2]
[337506976,1725725444566,-500.0,0.00014997,2]
[337506977,1725725444576,-500.0,0.00014997,2]
[337506978,1725725444585,-2435.23,0.00014997,2]
[337506979,1725725444596,-500.0,0.00014997,2]
[337506980,1725725444606,-500.0,0.00014997,2]
[337506981,1725725444615,-651.29,0.00014997,2]
[337506982,1725725444624,-500.0,0.00014997,2]
[337506983,1725725444633,-151.0,0.00014997,2]
[337506984,1725725444642,-1083.73,0.00014997,2]
[337506985,1725725444651,-1611.11,0.00014997,2]
[337506986,1725725444661,-702.31,0.00014997,2]
[337506987,1725725444670,-151.0,0.00014997,2]
[337506988,1725725444679,-1562.147949,0.00014997,2]
[337506989,1725725444688,-665.04,0.00014997,2]
[337506990,1725725444698,-1562.147949,0.00014997,2]
[337506991,1725725444707,-500.0,0.00014997,2]
[337506992,1725725444716,-602.44,0.00014997,2]
[337506993,1725725444726,-4217.42,0.00014997,2]
[337506994,1725725444735,-500.0,0.00014997,2]
[337506995,1725725444745,-2562.45,0.00014997,2]
[337506996,1725725444756,-538.12,0.00014997,2]
[337506997,1725725444765,-1352.15,0.00014997,2]
[337506998,1725725444774,-500.0,0.00014997,2]
[337506999,1725725444783,-1183.93,0.00014997,2]
[337507000,1725725444794,-635.13,0.00014997,2]
[337507001,1725725444803,-2590.3,0.00014997,2]
[337507002,1725725444815,-1843.92,0.00014997,2]
[337507003,1725725444825,-500.0,0.00014997,2]
[337507004,1725725444834,-1168.13,0.00014997,2]
[337507005,1725725444844,-2459.72,0.00014997,2]
[337507006,1725725444855,-500.0,0.00014997,2]
[337507007,1725725444866,-500.0,0.00014997,2]
[337507008,1725725444876,-8378.39,0.00014997,2]
[337507009,1725725444885,-2902.76,0.00014997,2]
[337507010,1725725444897,-157.179605,0.00014997,2]
[337507011,1725725444908,-931.16,0.00014997,2]
[337507012,1725725444918,-500.0,0.00014997,2]
[337507013,1725725444928,-267.458192,0.00014997,2]
[337507014,1725725444937,-1494.43,0.00014997,2]
[337507015,1725725444946,-500.0,0.00014997,2]
[337507016,1725725444956,-1900.6,0.00014997,2]
[337507017,1725725444966,-500.0,0.00014997,2]
[337507018,1725725444976,-1671.94,0.00014997,2]
[337507019,1725725444987,-564.82,0.00014997,2]
[337507020,1725725444998,-3004.64,0.00014997,2]
[337507021,1725725445007,-500.0,0.00014997,2]
[337507022,1725725445017,-541.66,0.00014997,2]
[337507023,1725725445028,-500.0,0.00014997,2]
[337507024,1725725445038,-500.0,0.00014997,2]
[337507025,1725725445048,-500.0,0.00014997,2]
[337507026,1725725445057,-247.52176996,0.00014997,2]
[337507027,1725725445067,-500.0,0.00014997,2]
[337507028,1725725445076,-500.0,0.00014997,2]
[337507029,1725725445086,-500.0,0.00014997,2]
[337507030,1725725445096,-500.0,0.00014997,2]
[337507031,1725725445107,-500.0,0.00014997,2]
[337507032,1725725445118,-500.0,0.00014997,2]
[337507033,1725725445127,-1417.05,0.00014997,2]
[337507034,1725725445137,-500.0,0.00014997,2]
[337507035,1725725445147,-516.83,0.00014997,2]
[337507036,1725725445157,-500.0,0.00014997,2]
[337507037,1725725445167,-500.0,0.00014997,2]
[337507038,1725725445176,-151.0,0.00014997,2]
[337507039,1725725445185,-500.0,0.00014997,2]
[337507040,1725725445195,-500.0,0.00014997,2]
[337507041,1725725445204,-504.74123054,0.00014997,2]
[337507042,1725725445214,-500.0,0.00014998,2]
[337507043,1725725445223,-500.0,0.00014998,2]
[337507044,1725725445232,-500.0,0.00014998,2]
[337507045,1725725445244,-500.0,0.00014998,2]
[337507046,1725725445255,-500.0,0.00014998,2]